lending/lending_fUSD_20251106
["ID","MTS","AMOUNT","RATE_DAILY","PERIOD"]
[393316660,1762461040493,-404.95500358,0.00017211,2]
[393316661,1762461040504,-1420.71900848,0.00017211,2]
[393316662,1762461040550,-8729.48608437,0.00017211,2]
[393316663,1762461040561,-49761.96764538,0.00017211,2]
[393316664,1762461040570,-1000.0,0.00017211,2]
[393316665,1762461040580,-17354.8668,0.00017211,2]
[393316666,1762461040591,-500.0,0.00017273,2]
[393316667,1762461040600,-500.0,0.00017273,2]
[393316668,1762461040609,-500.0,0.00017273,2]
[393316669,1762461040618,-500.0,0.00017273,2]
[393316670,1762461040627,-500.0,0.00017273,2]
[393316671,1762461040636,-500.0,0.00017273,2]
[393316672,1762461040646,-500.0,0.00017273,2]
[393316673,1762461040655,-500.0,0.00017273,2]
[393316674,1762461040665,-500.0,0.00017273,2]
[393316675,1762461040674,-817.54684609,0.00017286,2]
[393316676,1762461040683,-1500.0,0.000173,6]
[393316677,1762461040692,-500.0,0.0001731,2]
[393316678,1762461040702,-500.0,0.0001731,2]
[393316679,1762461040711,-553.13,0.0001731,2]
[393316680,1762461040720,-500.0,0.0001731,2]
[393316681,1762461040730,-500.0,0.0001731,2]
[393316682,1762461040739,-640.49374867,0.0001731,2]
[393316683,1762461040749,-500.0,0.0001731,2]
[393316684,1762461040758,-817.54684609,0.00017374,2]
[393316685,1762461040767,-1900.0,0.000174,6]
[393316686,1762461040776,-329.46,0.00017437,2]
[393316687,1762461040787,-420.0,0.00017452,2]
[393316688,1762461040798,-817.54684609,0.00017462,2]
[393316689,1762461040808,-300.0,0.000175,6]
[393316690,1762461040818,-166.66,0.00017522,2]
[393316691,1762461040828,-300.0,0.0001753,2]
[393316693,1762461040838,-300.0,0.0001753,2]
[393316695,1762461040847,-300.0,0.0001753,2]
[393316697,1762461040857,-300.0,0.0001753,2]
[393316699,1762461040868,-300.0,0.0001753,2]
[393316701,1762461040878,-1680.0,0.00017539,2]
[393316703,1762461040887,-817.54684609,0.00017549,2]
[393316705,1762461040897,-477.87911524,0.00017566,2]
[393316707,1762461040906,-300.0,0.000176,6]
[393316709,1762461040915,-817.54684609,0.00017637,2]
[393316711,1762461040924,-5464.0,0.00017641,2]
[393316713,1762461040934,-169.04,0.00017647,2]
[393316715,1762461040943,-169.04,0.00017647,2]
[393316717,1762461040953,-169.04,0.00017647,2]
[393316719,1762461040962,-169.04,0.00017647,2]
[393316721,1762461040971,-169.04,0.00017647,2]
[393316723,1762461040980,-1205.44,0.00017654,2]
[393316725,1762461040989,-1480.58,0.00017654,2]
[393316727,1762461040998,-2249.0,0.00017675,2]
[393316729,1762461041007,-5000.0,0.00017685,2]
[393316731,1762461041016,-1000.0,0.000177,2]
[393316733,1762461041025,-300.0,0.000177,6]
[393316735,1762461041034,-1205.44,0.00017709,2]
[393316737,1762461041043,-1205.44,0.00017709,2]
[393316738,1762461041053,-1205.44,0.00017709,2]
[393316739,1762461041062,-1205.44,0.00017709,2]
[393316740,1762461041071,-1205.44,0.00017709,2]
[393316741,1762461041080,-1205.44,0.00017709,2]
[393316742,1762461041090,-1205.44,0.00017709,2]
[393316743,1762461041099,-1205.44,0.00017709,2]
[393316744,1762461041107,-1205.44,0.00017709,2]
[393316745,1762461041116,-1205.44,0.00017709,2]
[393316746,1762461041125,-1205.44,0.00017709,2]
[393316747,1762461041134,-1205.44,0.00017709,2]
[393316748,1762461041146,-1205.44,0.00017709,2]
[393316749,1762461041155,-1205.44,0.00017709,2]
[393316750,1762461041164,-2410.88,0.00017709,2]
[393316751,1762461041173,-284.43,0.00017709,2]
[393316752,1762461041182,-1205.44,0.00017709,2]
[393316753,1762461041190,-500.0,0.00017719,2]
[393316754,1762461041199,-817.54684609,0.00017725,2]
[393316755,1762461041208,-893.73840764,0.00017729,2]
[393316756,1762461041217,-5464.0,0.00017741,2]
[393316757,1762461041225,-553.13,0.00017776,2]
[393316758,1762461041235,-500.0,0.00017776,2]
[393316759,1762461041244,-221.80400124,0.00017784,2]
[393316760,1762461041253,-2500.0,0.00017786,3]
[393316761,1762461041262,-2500.0,0.00017794,3]
[393316762,1762461041270,-1000.0,0.000178,2]
[393316763,1762461041279,-300.0,0.000178,6]
[393316764,1762461041288,-2500.0,0.00017803,3]
[393316765,1762461041297,-2500.0,0.00017812,3]
[393316766,1762461041306,-817.54684609,0.00017812,2]
[393316767,1762461041315,-1000.0,0.00017821,2]
[393316768,1762461041323,-1000.0,0.00017821,2]
[393316769,1762461041333,-1000.0,0.00017821,2]
[393316770,1762461041342,-1000.0,0.00017821,2]
[393316771,1762461041351,-873.08240891,0.00017821,2]
[393316772,1762461041360,-1000.0,0.00017821,2]
[393316773,1762461041369,-1000.0,0.00017821,2]
[393316774,1762461041378,-1000.0,0.00017821,2]
[393316775,1762461041387,-2500.0,0.00017821,3]
[393316776,1762461041396,-2500.0,0.0001783,3]
[393316777,1762461041404,-2500.0,0.00017838,3]
[393316778,1762461041414,-477.87911524,0.00017838,3]
[393316779,1762461041424,-2500.0,0.00017847,3]
[393316780,1762461041433,-2500.0,0.00017856,3]
[393316781,1762461041443,-166.66,0.00017862,2]
[393316782,1762461041452,-2500.0,0.00017865,3]
[393316783,1762461041461,-2500.0,0.00017874,3]
[393316784,1762461041470,-5464.0,0.00017878,2]
[393316785,1762461041479,-187.58,0.00017882,2]
[393316786,1762461041488,-1866.965,0.00017882,2]
[393316787,1762461041497,-2500.0,0.00017882,3]
[393316788,1762461041506,-5464.0,0.00017884,2]
[393316789,1762461041515,-2500.0,0.00017891,3]
[393316790,1762461041525,-2500.0,0.000179,3]
[393316791,1762461041534,-1000.0,0.000179,2]
[393316792,1762461041543,-1096.0,0.000179,6]
[393316793,1762461041552,-817.54684609,0.000179,2]
[393316794,1762461041562,-923.45654704,0.000179,3]
[393316795,1762461041571,-174.36793026,0.000179,2]
[393316796,1762461041579,-500.0,0.00017917,2]
[393316797,1762461041590,-500.0,0.00017917,2]
[393316798,1762461041599,-150.0,0.00017917,2]
[393316799,1762461041608,-500.0,0.00017917,2]
[393316800,1762461041618,-250.0,0.00017917,2]
[393316801,1762461041627,-200.0,0.00017917,2]
[393316802,1762461041636,-200.0,0.00017917,2]
[393316803,1762461041646,-150.0,0.00017917,2]
[393316804,1762461041655,-500.0,0.00017917,2]
[393316805,1762461041664,-503.54833867,0.00017973,2]
[393316806,1762461041674,-500.0,0.00017973,2]
[393316807,1762461041683,-500.0,0.00017973,2]
[393316808,1762461041691,-500.0,0.00017973,2]
[393316809,1762461041700,-500.344539,0.00017973,2]
[393316810,1762461041710,-576.60959597,0.00017973,2]
[393316811,1762461041719,-500.0,0.00017973,2]
[393316812,1762461041728,-500.0,0.00017973,2]
[393316813,1762461041738,-500.0,0.00017973,2]
[393316814,1762461041747,-205.18594207,0.00017973,2]
[393316815,1762461041756,-504.87705627,0.00017973,2]
[393316816,1762461041765,-500.0,0.00017973,2]
[393316817,1762461041775,-500.0,0.00017973,2]
[393316818,1762461041784,-500.0,0.00017973,2]
[393316819,1762461041796,-363.10933845,0.00017973,2]
[393316820,1762461041805,-158.14817295,0.00017973,2]
[393316821,1762461041815,-500.0,0.00017973,2]
[393316822,1762461041823,-503.10120576,0.00017973,2]
[393316823,1762461041834,-500.0,0.00017973,2]
[393316824,1762461041843,-500.0,0.00017973,2]
[393316825,1762461041852,-500.49618419,0.00017973,2]
[393316826,1762461041861,-500.0,0.00017973,2]
[393316827,1762461041873,-500.0,0.00017973,2]
[393316828,1762461041883,-500.0,0.00017973,2]
[393316829,1762461041891,-500.0,0.00017973,2]
[393316830,1762461041900,-500.0,0.00017973,2]
[393316831,1762461041909,-500.0,0.00017973,2]
[393316832,1762461041919,-500.0,0.00017973,2]
[393316833,1762461041927,-500.0,0.00017973,2]
[393316834,1762461041936,-500.0,0.00017973,2]
[393316835,1762461041945,-500.0,0.00017973,2]
[393316836,1762461041954,-500.0,0.00017973,2]
[393316837,1762461041963,-500.0,0.00017973,2]
[393316838,1762461041972,-500.0,0.00017973,2]
[393316839,1762461041981,-392.07,0.00017973,2]
[393316840,1762461041990,-500.0,0.00017982,2]
[393316841,1762461041999,-151.0,0.00017996,2]
[393316842,1762461042008,-563.66,0.00017998,2]
[393316843,1762461042016,-942.96105378,0.00017999,5]
[393316844,1762461042025,-3164.4592809,0.00017999,2]
[393316845,1762461042034,-553.13,0.00017999,2]
[393316846,1762461042043,-553.13,0.00017999,2]
[393316847,1762461042052,-553.13,0.00017999,2]
[393316848,1762461042061,-553.13,0.00017999,2]
[393316849,1762461042070,-553.13,0.00017999,2]
[393316850,1762461042079,-553.13,0.00017999,2]
[393316851,1762461042090,-553.13,0.00017999,2]
[393316852,1762461042099,-553.13,0.00017999,2]
[393316853,1762461042108,-553.13,0.00017999,2]
[393316854,1762461042117,-553.13,0.00017999,2]
[393316855,1762461042137,-553.13,0.00017999,2]
[393316856,1762461042157,-553.13,0.00017999,2]
[393316857,1762461042168,-553.13,0.00017999,2]
[393316858,1762461042178,-553.13,0.00017999,2]
[393316859,1762461042188,-553.13,0.00017999,2]
[393316860,1762461042198,-553.13,0.00017999,2]
[393316861,1762461042207,-553.13,0.00017999,2]
[393316862,1762461042217,-553.13,0.00017999,2]
[393316863,1762461042227,-553.13,0.00017999,2]
[393316864,1762461042239,-553.13,0.00017999,2]
[393316865,1762461042249,-553.13,0.00017999,2]
[393316866,1762461042259,-553.18248761,0.00017999,2]
[393316867,1762461042269,-568.5984542,0.00017999,2]
[393316868,1762461042278,-212.916,0.00017999,2]
[393316869,1762461042287,-284.48434783,0.00017999,2]
[393316870,1762461042297,-72678.0124969,0.00017999,2]
[393316871,1762461042314,-500.0,0.00017999,2]
[393316872,1762461042333,-500.0,0.00017999,2]
[393316873,1762461042344,-500.0,0.00017999,2]
[393316874,1762461042354,-355.86016182,0.00017999,2]
[393316875,1762461042363,-399.17554175,0.00017999,2]
[393316876,1762461042372,-302.10637507,0.00017999,2]
[393316877,1762461042382,-15400.16589434,0.00017999,2]
[393316878,1762461042391,-563.66,0.00017999,2]
[393316879,1762461042400,-563.66,0.00017999,2]
[393316880,1762461042409,-563.66,0.00017999,2]
[393316881,1762461042418,-563.66,0.00017999,2]
[393316882,1762461042427,-563.66,0.00017999,2]
[393316883,1762461042436,-563.66,0.00017999,2]
[393316884,1762461042445,-563.66,0.00017999,2]
[393316885,1762461042454,-563.66,0.00017999,2]
[393316886,1762461042464,-563.66,0.00017999,2]
[393316887,1762461042473,-563.66,0.00017999,2]
[393316888,1762461042482,-563.66,0.00017999,2]
[393316889,1762461042491,-563.66,0.00017999,2]
[393316890,1762461042500,-563.66,0.00017999,2]
[393316891,1762461042509,-563.66,0.00017999,2]
[393316892,1762461042518,-563.66,0.00017999,2]
[393316893,1762461042527,-563.66,0.00017999,2]
[393316894,1762461042536,-563.66,0.00017999,2]
[393316895,1762461042545,-563.66,0.00017999,2]
[393316896,1762461042555,-563.66,0.00017999,2]
[393316897,1762461042564,-563.66,0.00017999,2]
[393316898,1762461042573,-563.74372178,0.00017999,2]
[393316899,1762461042583,-3627.0,0.00018,2]
[393316900,1762461042596,-881648.92896723,0.00018,2]
[393316901,1762461042619,-6670.78321751,0.00018,2]
[393316902,1762461042630,-5506.52241984,0.00018,2]
[393316903,1762461042641,-1710.19466749,0.00018,2]
[393316904,1762461042662,-576.82250221,0.00018,2]
[393316905,1762461042673,-271.37002482,0.00018,2]
[393316911,1762461043407,-299.26067928,0.00017111,2]
[393316923,1762461043573,-1447.68054801,0.00017111,2]
[393316924,1762461043583,-1205.44,0.00017709,2]
[393316925,1762461043594,-328.63945199,0.00018,2]
[393316926,1762461046498,-1564.96691582,0.00017199,2]
[393316927,1762461046800,-181.97431142,0.00017199,2]
[393316928,1762461046810,-406.96568858,0.00018,2]
[393316932,1762461273562,500.0,0.00038794,30]
[393316933,1762461274213,535.92,0.00038794,120]
[393316934,1762461276423,500.0,0.00038794,30]
[393316935,1762461278270,500.0,0.00038794,30]
[393316936,1762461309746,656.0,0.00038794,30]
[393316937,1762461416913,162.76,8.431e-05,2]
[393316938,1762461416948,162.76,9.241e-05,2]
[393316939,1762461417015,162.76,0.00010051,2]
[393316940,1762461417271,162.76,0.00010861,2]
[393316941,1762461417518,162.76,0.00011671,2]
[393316942,1762461417746,162.76,0.00012481,2]
[393316943,1762461418175,162.76,0.00013291,2]
[393316944,1762461418500,162.76,0.00014101,2]
[393316945,1762461418721,162.76,0.00014911,2]
[393316947,1762462016141,-162.76,0.00015721,2]
[393316948,1762462016161,-141.52572497,0.00015835,2]
[393316965,1762462231485,-251.96339465,0.00015835,2]
[393316966,1762462231495,-178.95064141,0.00015848,2]
[393316967,1762462231504,-195.0,0.00015948,2]
[393316968,1762462231513,-261.40211524,0.00015948,2]
[393316969,1762462231521,-250.0,0.00016169,2]
[393316970,1762462231534,-218.07902414,0.00016175,2]
[393316971,1762462231675,-299.997,0.00016175,2]
[393316974,1762462231750,-347.00397586,0.00016175,2]
[393316975,1762462231760,-195.0,0.00016342,2]
[393316977,1762462231770,-861.84328019,0.00016438,2]
[393316980,1762462231782,-765.00000003,0.00016438,2]
[393316982,1762462231793,-973.02671978,0.00016438,2]
[393316984,1762462231802,-162.76,0.00016531,2]
[393316986,1762462231811,-351.0,0.00016843,2]
[393316988,1762462231821,-219.03,0.00016854,2]
[393316990,1762462231830,-743.94,0.00016887,2]
[393316992,1762462231839,-351.0,0.00016924,2]
[393316994,1762462231848,-200.0,0.00017,6]
[393316996,1762462231858,-300.0,0.0001701,2]
[393316998,1762462231867,-1200.0,0.0001701,2]
[393317000,1762462231876,-4206.07999315,0.00017011,2]
[393317002,1762462231887,-1599.22750367,0.00017011,2]
[393317005,1762462231906,-1848.75756851,0.00017011,2]
[393317007,1762462231917,-9700.80173467,0.00017011,2]
[393317009,1762462231926,-188.77456332,0.00017017,2]
[393317011,1762462231935,-1422.75965591,0.00017019,2]
[393317013,1762462231944,-813.0212333,0.00017021,2]
[393317015,1762462231953,-351.0,0.00017031,2]
[393317017,1762462231963,-500.0,0.000171,6]
[393317019,1762462231972,-151.0,0.00017108,2]
[393317021,1762462231981,-243.42744916,0.0001711,2]
[393317023,1762462231990,-500.0,0.0001711,2]
[393317025,1762462231999,-500.0,0.0001711,2]
[393317027,1762462232008,-516.69,0.0001711,2]
[393317029,1762462232017,-1000.0,0.00017111,2]
[393317031,1762462232027,-137803.49397633,0.00017111,2]
[393317034,1762462232046,-5710.08935412,0.00017111,2]
[393317086,1762462237438,-353.1,0.00016078,2]
[393317090,1762462237495,-646.9,0.00016078,2]
[393317091,1762462237504,-362.03843287,0.00017108,2]
[393317092,1762462237551,-137.96156713,0.00017108,2]
[393317093,1762462237560,-252.75595474,0.00017108,2]
[393317094,1762462237569,-500.0,0.00017108,2]
[393317095,1762462237578,-500.0,0.00017108,2]
[393317096,1762462237587,-577.48944065,0.00017108,2]
[393317097,1762462237597,-500.0,0.00017108,2]
[393317098,1762462237606,-500.0,0.00017108,2]
[393317099,1762462237615,-500.0,0.00017108,2]
[393317100,1762462237624,-500.0,0.00017108,2]
[393317101,1762462237633,-248491.0135876,0.00017111,2]
[393317102,1762462237643,-3787.40666102,0.00017111,2]
[393317103,1762462237662,-17939.53815342,0.00017111,2]
[393317106,1762462237672,-1486.42542538,0.00017111,2]
[393317108,1762462237683,-386.1649995,0.00017111,2]
[393317122,1762462239540,-1347.92886565,0.00017111,2]
[393317124,1762462239645,-3047.93897698,0.00017111,2]
[393317125,1762462239655,-1422.75965585,0.00017117,2]
[393317126,1762462239664,-813.02123323,0.00017119,2]
[393317127,1762462239673,-351.0,0.00017125,2]
[393317128,1762462239682,-500.0,0.00017173,2]
[393317129,1762462239692,-500.0,0.00017173,2]
[393317130,1762462239701,-500.0,0.00017173,2]
[393317131,1762462239711,-500.0,0.00017173,2]
[393317132,1762462239720,-500.0,0.00017173,2]
[393317133,1762462239730,-500.0,0.00017173,2]
[393317134,1762462239739,-500.0,0.00017173,2]
[393317135,1762462239748,-500.0,0.00017173,2]
[393317136,1762462239758,-800.0,0.000172,6]
[393317137,1762462239767,-500.0,0.0001721,2]
[393317138,1762462239776,-611.88605086,0.0001721,2]
[393317139,1762462239787,-500.0,0.0001721,2]
[393317140,1762462239805,-500.0,0.0001721,2]
[393317141,1762462239816,-500.0,0.0001721,2]
[393317142,1762462239826,-500.0,0.0001721,2]
[393317143,1762462239835,-640.49374867,0.0001721,2]
[393317144,1762462239845,-500.0,0.0001721,2]
[393317145,1762462239855,-500.0,0.0001721,2]
[393317146,1762462239864,-500.0,0.0001721,2]
[393317147,1762462239874,-500.0,0.0001721,2]
[393317148,1762462239884,-500.0,0.0001721,2]
[393317149,1762462239894,-553.13,0.0001721,2]
[393317150,1762462239903,-553.13,0.0001721,2]
[393317151,1762462239913,-500.0,0.0001721,2]
[393317152,1762462239924,-1422.75965585,0.00017215,2]
[393317154,1762462239933,-813.02123323,0.00017216,2]
[393317155,1762462239943,-500.0,0.00017293,2]
[393317156,1762462239952,-500.0,0.00017293,2]
[393317157,1762462239961,-150.0,0.00017293,2]
[393317158,1762462239970,-500.0,0.00017293,2]
[393317159,1762462239980,-250.0,0.00017293,2]
[393317161,1762462239990,-200.0,0.00017293,2]
[393317162,1762462240000,-200.0,0.00017293,2]
[393317163,1762462240010,-150.0,0.00017293,2]
[393317164,1762462240019,-500.0,0.00017293,2]
[393317165,1762462240030,-195.0,0.00017293,2]
[393317166,1762462240039,-200.0,0.00017293,2]
[393317167,1762462240049,-2500.0,0.00017293,2]
[393317168,1762462240058,-300.0,0.00017293,2]
[393317169,1762462240068,-195.0,0.00017293,2]
[393317170,1762462240077,-168.23399195,0.00017293,2]
[393317171,1762462240087,-5888.0,0.00017293,2]
[393317172,1762462240097,-1100.0,0.000173,6]
[393317173,1762462240106,-1422.75965585,0.00017313,2]
[393317174,1762462240116,-813.02123323,0.00017314,2]
[393317175,1762462240125,-329.46,0.00017342,2]
[393317176,1762462240134,-1400.0,0.000174,6]
[393317177,1762462240144,-2045.0,0.00017403,2]
[393317178,1762462240153,-1422.75965585,0.00017411,2]
[393317179,1762462240163,-813.02123323,0.00017412,2]
[393317180,1762462240172,-250.0,0.00017418,2]
[393317181,1762462240182,-195.0,0.00017418,2]
[393317182,1762462240195,-300.0,0.00017418,2]
[393317183,1762462240204,-300.0,0.00017418,2]
[393317184,1762462240214,-300.0,0.00017418,2]
[393317185,1762462240223,-300.0,0.00017418,2]
[393317186,1762462240234,-300.0,0.00017418,2]
[393317187,1762462240243,-500.0,0.0001743,2]
[393317188,1762462240254,-500.0,0.0001743,2]
[393317189,1762462240265,-200.0,0.0001743,2]
[393317190,1762462240275,-500.0,0.0001743,2]
[393317191,1762462240285,-150.0,0.0001743,2]
[393317192,1762462240295,-500.0,0.0001743,2]
[393317193,1762462240304,-188.77456331,0.00017459,2]
[393317194,1762462240313,-166.67,0.00017467,2]
[393317195,1762462240323,-200.0,0.000175,6]
[393317196,1762462240332,-1422.75965585,0.00017508,2]
[393317197,1762462240342,-813.02123323,0.00017509,2]
[393317198,1762462240351,-500.0,0.00017567,2]
[393317199,1762462240364,-500.0,0.00017567,2]
[393317200,1762462240374,-500.0,0.00017567,2]
[393317201,1762462240383,-150.0,0.00017567,2]
[393317202,1762462240392,-398.21658461,0.00017567,2]
[393317203,1762462240402,-477.87911524,0.00017569,2]
[393317204,1762462240412,-516.69,0.00017588,2]
[393317205,1762462240422,-5888.0,0.00017589,2]
[393317206,1762462240431,-200.0,0.000176,6]
[393317207,1762462240441,-1422.75965585,0.00017606,2]
[393317208,1762462240450,-813.02123323,0.00017607,2]
[393317209,1762462240459,-5000.0,0.0001761,2]
[393317210,1762462240469,-893.73840764,0.00017625,2]
[393317211,1762462240478,-221.80400124,0.00017699,2]
[393317212,1762462240488,-200.0,0.000177,6]
[393317213,1762462240497,-500.0,0.00017704,2]
[393317214,1762462240507,-262.80678358,0.00017704,2]
[393317215,1762462240517,-250.0,0.00017704,2]
[393317216,1762462240526,-1422.75965585,0.00017704,2]
[393317217,1762462240538,-813.02123323,0.00017705,2]
[393317218,1762462240548,-1000.0,0.00017721,2]
[393317219,1762462240557,-1000.0,0.00017721,2]
[393317220,1762462240567,-1000.0,0.00017721,2]
[393317221,1762462240576,-1000.0,0.00017721,2]
[393317222,1762462240585,-1000.0,0.00017721,2]
[393317223,1762462240594,-1000.0,0.00017721,2]
[393317224,1762462240604,-1000.0,0.00017721,2]
[393317225,1762462240614,-2500.0,0.00017786,3]
[393317226,1762462240623,-2500.0,0.00017794,3]
[393317227,1762462240632,-1000.0,0.000178,2]
[393317228,1762462240641,-200.0,0.000178,6]
[393317229,1762462240650,-1422.75965585,0.00017802,2]
[393317230,1762462240659,-813.02123323,0.00017802,2]
[393317231,1762462240669,-2500.0,0.00017803,3]
[393317232,1762462240678,-2500.0,0.00017812,3]
[393317233,1762462240687,-5630.57953,0.0001782,2]
[393317234,1762462240697,-2500.0,0.00017821,3]
[393317235,1762462240706,-2500.0,0.0001783,3]
[393317236,1762462240715,-2500.0,0.00017838,3]
[393317237,1762462240725,-500.0,0.00017841,2]
[393317238,1762462240734,-2500.0,0.00017847,3]
[393317239,1762462240747,-2500.0,0.00017856,3]
[393317240,1762462240757,-1866.965,0.00017859,2]
[393317241,1762462240766,-187.58,0.00017859,2]
[393317242,1762462240775,-2500.0,0.00017865,3]
[393317243,1762462240787,-2500.0,0.00017874,3]
[393317244,1762462240797,-2500.0,0.00017882,3]
[393317245,1762462240806,-2500.0,0.00017891,3]
[393317246,1762462240816,-2500.0,0.000179,3]
[393317247,1762462240825,-477.87911524,0.000179,3]
[393317248,1762462240835,-1000.0,0.000179,2]
[393317249,1762462240845,-896.0,0.000179,6]
[393317250,1762462240855,-813.02123323,0.000179,2]
[393317251,1762462240865,-1422.75965585,0.000179,2]
[393317252,1762462240875,-188.77456331,0.000179,2]
[393317253,1762462240884,-5800.0,0.00017958,2]
[393317254,1762462240895,-5800.0,0.00017966,2]
[393317255,1762462240905,-500.0,0.00017973,2]
[393317256,1762462240915,-500.344539,0.00017973,2]
[393317257,1762462240925,-500.0,0.00017973,2]
[393317258,1762462240934,-500.0,0.00017973,2]
[393317259,1762462240945,-363.10933845,0.00017973,2]
[393317260,1762462240954,-500.0,0.00017973,2]
[393317261,1762462240964,-500.0,0.00017973,2]
[393317262,1762462240974,-504.87705627,0.00017973,2]
[393317263,1762462240983,-500.0,0.00017973,2]
[393317264,1762462240992,-500.0,0.00017973,2]
[393317265,1762462241002,-576.60959597,0.00017973,2]
[393317266,1762462241012,-500.0,0.00017973,2]
[393317267,1762462241022,-500.0,0.00017973,2]
[393317268,1762462241032,-231.42602229,0.00017973,2]
[393317269,1762462241042,-500.0,0.00017973,2]
[393317270,1762462241051,-500.0,0.00017973,2]
[393317271,1762462241060,-500.0,0.00017973,2]
[393317272,1762462241069,-500.0,0.00017973,2]
[393317273,1762462241078,-500.0,0.00017973,2]
[393317274,1762462241087,-465.03295868,0.00017973,2]
[393317275,1762462241096,-505.37835354,0.00017973,2]
[393317276,1762462241105,-158.14817295,0.00017973,2]
[393317277,1762462241115,-503.10120576,0.00017973,2]
[393317278,1762462241127,-503.54833867,0.00017973,2]
[393317279,1762462241136,-500.0,0.00017973,2]
[393317280,1762462241146,-500.0,0.00017973,2]
[393317281,1762462241155,-500.0,0.00017973,2]
[393317282,1762462241164,-500.0,0.00017973,2]
[393317283,1762462241173,-500.49618419,0.00017973,2]
[393317284,1762462241184,-500.0,0.00017973,2]
[393317285,1762462241194,-500.0,0.00017973,2]
[393317286,1762462241203,-500.0,0.00017973,2]
[393317287,1762462241213,-500.0,0.00017973,2]
[393317288,1762462241223,-500.0,0.00017973,2]
[393317289,1762462241232,-500.0,0.00017973,2]
[393317290,1762462241242,-392.07,0.00017973,2]
[393317291,1762462241251,-5800.0,0.00017975,2]
[393317292,1762462241489,-500.0,0.00017978,2]
[393317293,1762462241498,-500.0,0.00017982,2]
[393317294,1762462241507,-5800.0,0.00017983,2]
[393317295,1762462241517,-5800.0,0.00017992,2]
[393317296,1762462241526,-516.69,0.00017996,2]
[393317297,1762462241535,-516.69,0.00017996,2]
[393317298,1762462241544,-516.69,0.00017996,2]
[393317299,1762462241554,-516.69,0.00017996,2]
[393317300,1762462241563,-3833.0,0.00017997,2]
[393317301,1762462241571,-27536.1257817,0.00017997,2]
[393317302,1762462241580,-874968.4177039,0.00017997,2]
[393317303,1762462241590,-3014.3820364,0.00017997,2]
[393317304,1762462241600,-186.33892362,0.00017998,2]
[393317305,1762462241609,-500.0,0.00017998,2]
[393317306,1762462241618,-553.13,0.00017998,2]
[393317307,1762462241627,-942.96105378,0.00017999,5]
[393317308,1762462241636,-500.0,0.00017999,2]
[393317309,1762462241645,-355.86016182,0.00017999,2]
[393317310,1762462241654,-212.916,0.00017999,2]
[393317311,1762462241663,-553.13,0.00017999,2]
[393317312,1762462241671,-553.13,0.00017999,2]
[393317313,1762462241682,-553.13,0.00017999,2]
[393317314,1762462241690,-553.13,0.00017999,2]
[393317315,1762462241699,-553.13,0.00017999,2]
[393317316,1762462241708,-553.13,0.00017999,2]
[393317317,1762462241717,-553.13,0.00017999,2]
[393317318,1762462241726,-553.13,0.00017999,2]
[393317319,1762462241736,-553.13,0.00017999,2]
[393317320,1762462241745,-553.13,0.00017999,2]
[393317321,1762462241754,-1000.0,0.00017999,2]
[393317322,1762462241763,-553.13,0.00017999,2]
[393317323,1762462241772,-553.13,0.00017999,2]
[393317324,1762462241781,-553.13,0.00017999,2]